{"text_format":"3","workbook":"xlsx","n_sheets":1,"sheets":["PRICING SCHEDULE"],"not_rendered":{"images":1,"defined_names":2},"read":"whole","date_system":"1900"}

{"sheet":"PRICING SCHEDULE","index":0,"n_rows":38,"n_cols":17,"rows_kept":38,"merged":[[11,2,11,3],[12,2,12,3],[12,5,14,5],[13,2,13,3],[14,2,14,3],[16,4,16,6],[16,7,16,9],[16,10,16,12],[34,1,37,1],[34,4,34,5],[36,4,36,5],[37,4,37,5]]}
[null,"SUPPLY CHAIN MANAGEMENT"]
[null,"Pricing schedule"]
["RFx No","RFB 2755-2023"]
["RFx Title","Renewal of VMware licenses including maintenance and support for 36 month(s)"]
["Bidder Name "]
[]
["1. INSTRUCTION FOR COMPLETING THE PRICING SCHEDULE"]
["(a)  Bidder must complete/enter YELLOW cells only"]
["(b)  Unit and Line prices must be VAT EXCLUSIVE and in South African Rand (ZAR) currency."]
["(c) The price must include all cost to deliver the goods or render the service, including all applicable taxes, duty fees, logistics/delivery, storage, labour, overtime and subsistance and travel"]
["(d)  Prices that are dependent on Rate of Exchange (ROE) must use ROE indicated below, then enter in Column \"Forex %\" the percentage of the price that is ROE dependent (0% means the price is not ROE dependent)"]
[null,"Foreign currency","South African Rand (ZAR) exchange rate "]
[null,"1 US Dollar",{"v":19.7,"d":"R19.70"},null,null,"Mark with an X, which ROE is applicable"]
[null,"1 Euro",{"v":21.16,"d":"R21.16"}]
[null,"1 Pound (UK)",{"v":24.32,"d":"R24.32"}]
[]
[{"$nulls":4},"YEAR 1",null,null,"YEAR 2",null,null,"YEAR 3",null,null,"TOTAL"]
["Item No","Goods/Service description","Unit of measure","Forex %","Qty ","Unit Price \n(Excl VAT)","Line Price Y1","Qty","Unit Price \n(Excl VAT)","Line Price Y2","Qty","Unit Price \n(Excl VAT)","Line Price Y3","Line Price Term \n(Excl VAT)","Forex Price portion","BRAND / MODEL","Price clarification comment"]
[1,"Renewal of VMware licenses including maintenance and support for 36 month(s)","each ",{"v":0,"d":"0%"},null,0,{"$f":"F19*E19","v":0},0,0,{"$f":"I19*H19","v":0},0,0,{"$f":"L19*K19","v":0},{"$f":"M19+J19+G19","v":0},{"$f":"D54*N19","v":0}]
["1.1","VMware vSAN Enterprise (CPU)                                              ","each ",{"v":0,"d":"0%"},12,0,0,0,0,0,0,0,0,0,{"$f":"D55*N20","v":0}]
["1.2","VMware vSphere 7 Enterprise Plus (Per CPU)","each ",{"v":0,"d":"0%"},12,0,0,0,0,0,0,0,0,0,{"$f":"D56*N21","v":0}]
["1.3","VMware vCenter Server 7 Standard (Per instance)                             ","each ",{"v":0,"d":"0%"},2,0,0,0,0,0,0,0,0,0,{"$f":"D57*N22","v":0}]
["1.4","VMware vRealize Operations 8 Standard (Per CPU)           ","each ",{"v":0,"d":"0%"},12,0,0,0,0,0,0,0,0,0,{"$f":"D58*N23","v":0}]
[{"$nulls":8},0,0,0,0,0,0,{"$f":"D67*N24","v":0}]
[2,"Service Level Agreement for Support and Maintenance VMware "]
["2.1","500 Dell VXrail ad-hoc hours (professional services) for a period of 36 months","each ",{"v":0,"d":"0%"},500,0,0,0,0,0,0,0,0,0,0]
[]
[]
[]
[null,"TOTAL BID PRICE  (EXCL VAT)",{"$nulls":4},{"$f":"SUM(G19:G29)","v":0},null,null,{"$f":"SUM(J19:J29)","v":0},null,null,{"$f":"SUM(M19:M29)","v":0},{"$f":"SUM(N19:N29)","v":0},{"$f":"SUBTOTAL(9,O19:O29)","v":0}]
[null,"VAT (@15%)",{"$nulls":4},{"$f":"G30*0.15","v":0},null,null,{"$f":"J30*0.15","v":0},null,null,{"$f":"M30*0.15","v":0},{"$f":"N30*0.15","v":0}]
[null,"TOTAL  BID PRICE (INCL VAT)",{"$nulls":4},{"$f":"G30+G31","v":0},null,null,{"$f":"J30+J31","v":0},null,null,{"$f":"M30+M31","v":0},{"$f":"N30+N31","v":0}]
[]
[]
[null,"I, the bidder, confirm that the price(s) and rate(s) quoted cover all the goods and/or works specified in the bidding documents; that the price(s) or rate(s) cover all my obligations and I accept that any mistakes regarding price(s), rate(s) or calculations will be at my own risk.\n[Note: First convert to PDF, then add signature]"]
[null,null,"Name",null,"Capacity"]
[]
[null,null,"Signature (above)",null,"Date"]